fUSD/lending_fUSD_20240706
["ID","MTS","AMOUNT","RATE_DAILY","PERIOD"]
[331340640,1720253680419,-500.0,0.00032155,30]
[331340641,1720253680458,-500.0,0.00032155,30]
[331340642,1720253680498,-733.76,0.00032155,30]
[331340643,1720253680537,-500.0,0.00032155,30]
[331340644,1720253680576,-1027.92,0.00032155,30]
[331340645,1720253680613,-226.95908538,0.00032155,30]
[331340646,1720253680651,-1984.95,0.00032155,30]
[331340647,1720253680692,-630.17662198,0.00032155,30]
[331340648,1720253680732,-500.0,0.00032155,30]
[331340649,1720253680772,-1984.95,0.00032155,30]
[331340650,1720253680812,-1027.92,0.00032155,30]
[331340651,1720253680853,-733.76,0.00032155,30]
[331340652,1720253680894,-500.0,0.00032155,30]
[331340653,1720253680934,-500.0,0.00032155,30]
[331340654,1720253680974,-500.0,0.00032155,30]
[331340655,1720253681012,-1027.92,0.00032155,30]
[331340656,1720253681051,-1984.95,0.00032155,30]
[331340657,1720253681092,-500.0,0.00032155,30]
[331340658,1720253681130,-500.0,0.00032155,30]
[331340659,1720253681170,-733.76,0.00032155,30]
[331340660,1720253681210,-1984.95,0.00032155,30]
[331340661,1720253681252,-1027.92,0.00032155,30]
[331340662,1720253681291,-500.0,0.00032155,30]
[331340663,1720253681330,-500.0,0.00032155,30]
[331340664,1720253681370,-500.0,0.00032155,30]
[331340665,1720253681413,-500.0,0.00032155,30]
[331340666,1720253681453,-500.0,0.00032155,30]
[331340667,1720253681493,-1027.92,0.00032155,30]
[331340668,1720253681532,-1984.95,0.00032155,30]
[331340669,1720253681572,-500.0,0.00032155,30]
[331340670,1720253681615,-500.0,0.00032155,30]
[331340671,1720253681656,-500.0,0.00032155,30]
[331340672,1720253681698,-500.0,0.00032155,30]
[331340673,1720253681739,-1027.92,0.00032155,30]
[331340674,1720253681777,-1984.95,0.00032155,30]
[331340675,1720253681815,-500.0,0.00032155,30]
[331340676,1720253681855,-733.76,0.00032155,30]
[331340677,1720253681895,-500.0,0.00032155,30]
[331340678,1720253681935,-500.0,0.00032155,30]
[331340679,1720253681975,-500.0,0.00032155,30]
[331340680,1720253682014,-500.0,0.00032155,30]
[331340681,1720253682055,-629.69516587,0.00032155,30]
[331340682,1720253682099,-500.0,0.00032155,30]
[331340683,1720253682138,-500.0,0.00032155,30]
[331340684,1720253682177,-500.0,0.00032155,30]
[331340685,1720253682217,-500.0,0.00032155,30]
[331340686,1720253682258,-500.0,0.00032155,30]
[331340687,1720253682299,-1027.92,0.00032155,30]
[331340688,1720253682340,-1984.95,0.00032155,30]
[331340689,1720253682379,-500.0,0.00032155,30]
[331340690,1720253682419,-500.0,0.00032155,30]
[331340691,1720253682457,-500.0,0.00032155,30]
[331340692,1720253682494,-500.0,0.00032155,30]
[331340693,1720253682532,-500.0,0.00032155,30]
[331340694,1720253682569,-500.0,0.00032155,30]
[331340695,1720253682609,-1027.92,0.00032155,30]
[331340696,1720253682649,-1984.95,0.00032155,30]
[331340697,1720253682687,-500.0,0.00032155,30]
[331340698,1720253682726,-500.0,0.00032155,30]
[331340699,1720253682766,-500.0,0.00032155,30]
[331340700,1720253682804,-500.0,0.00032155,30]
[331340701,1720253682843,-500.0,0.00032155,30]
[331340702,1720253682882,-1984.95,0.00032155,30]
[331340703,1720253682923,-1028.05178572,0.00032155,30]
[331340704,1720253682964,-500.0,0.00032155,30]
[331340705,1720253683004,-733.76,0.00032155,30]
[331340706,1720253683042,-500.0,0.00032155,30]
[331340707,1720253683079,-500.0,0.00032155,30]
[331340708,1720253683116,-177.84087304,0.00032155,30]
[331340709,1720253683155,-500.0,0.00032155,30]
[331340710,1720253683193,-500.0,0.00032155,30]
[331340711,1720253683237,-500.0,0.00032155,30]
[331340712,1720253683275,-500.0,0.00032155,30]
[331340713,1720253683316,-1984.95,0.00032155,30]
[331340714,1720253683355,-500.0,0.00032155,30]
[331340715,1720253683392,-500.0,0.00032155,30]
[331340716,1720253683430,-1984.95,0.00032155,30]
[331340717,1720253683469,-500.0,0.00032155,30]
[331340718,1720253683508,-500.0,0.00032155,30]
[331340719,1720253683547,-500.0,0.00032155,30]
[331340720,1720253683767,-500.0,0.00032155,30]
[331340721,1720253683806,-500.0,0.00032155,30]
[331340722,1720253683845,-733.76,0.00032155,30]
[331340723,1720253683884,-500.0,0.00032155,30]
[331340724,1720253683922,-500.0,0.00032155,30]
[331340725,1720253683960,-500.0,0.00032155,30]
[331340726,1720253683998,-500.0,0.00032155,30]
[331340727,1720253684035,-500.0,0.00032155,30]
[331340728,1720253684073,-506.97846736,0.00032155,30]
[331340729,1720253684111,-500.0,0.00032155,30]
[331340730,1720253684148,-894.48,0.00032155,30]
[331340731,1720253684186,-1984.95,0.00032155,30]
[331340732,1720253684230,-504.10609569,0.00032155,30]
[331340733,1720253684268,-500.0,0.00032155,30]
[331340734,1720253684304,-500.0,0.00032155,30]
[331340735,1720253684342,-733.76,0.00032155,30]
[331340736,1720253684379,-500.0,0.00032155,30]
[331340737,1720253684416,-955.41,0.00032155,30]
[331340738,1720253684453,-500.0,0.00032155,30]
[331340739,1720253684490,-500.0,0.00032155,30]
[331340740,1720253684527,-500.0,0.00032155,30]
[331340741,1720253684566,-500.0,0.00032155,30]
[331340742,1720253684604,-500.0,0.00032155,30]
[331340743,1720253684643,-500.0,0.00032155,30]
[331340744,1720253684684,-955.41,0.00032155,30]
[331340745,1720253684722,-503.62718957,0.00032155,30]
[331340746,1720253684763,-500.0,0.00032155,30]
[331340747,1720253684801,-1984.95,0.00032155,30]
[331340748,1720253684842,-733.76,0.00032155,30]
[331340749,1720253684881,-500.0,0.00032155,30]
[331340750,1720253684920,-894.48,0.00032155,30]
[331340751,1720253684959,-500.0,0.00032155,30]
[331340752,1720253685003,-500.0,0.00032155,30]
[331340753,1720253685042,-500.0,0.00032155,30]
[331340754,1720253685081,-1985.10111225,0.00032155,30]
[331340755,1720253685120,-955.41,0.00032155,30]
[331340756,1720253685158,-500.0,0.00032155,30]
[331340757,1720253685197,-500.0,0.00032155,30]
[331340758,1720253685238,-518.50348455,0.00032155,30]
[331340759,1720253685276,-500.0,0.00032155,30]
[331340760,1720253685314,-500.0,0.00032155,30]
[331340761,1720253685352,-733.76,0.00032155,30]
[331340762,1720253685391,-955.41,0.00032155,30]
[331340763,1720253685431,-500.0,0.00032155,30]
[331340764,1720253685477,-894.48,0.00032155,30]
[331340765,1720253685523,-500.0,0.00032155,30]
[331340766,1720253685570,-500.0,0.00032155,30]
[331340767,1720253685618,-619.85007445,0.00032155,30]
[331340768,1720253685656,-955.41,0.00032155,30]
[331340769,1720253685695,-733.76,0.00032155,30]
[331340770,1720253685732,-500.0,0.00032155,30]
[331340771,1720253685771,-500.0,0.00032155,30]
[331340772,1720253685811,-500.0,0.00032155,30]
[331340773,1720253685851,-955.41,0.00032155,30]
[331340774,1720253685892,-500.0,0.00032155,30]
[331340775,1720253685933,-500.0,0.00032155,30]
[331340776,1720253685971,-500.0,0.00032155,30]
[331340777,1720253686008,-500.0,0.00032155,30]
[331340778,1720253686045,-334.09708987,0.00032155,30]
[331340779,1720253686082,-641.04145905,0.00032155,30]
[331340780,1720253686120,-894.48,0.00032155,30]
[331340781,1720253686159,-955.41,0.00032155,30]
[331340782,1720253686200,-733.76,0.00032155,30]
[331340783,1720253686240,-500.0,0.00032155,30]
[331340784,1720253686280,-500.0,0.00032155,30]
[331340785,1720253686326,-733.76,0.00032155,30]
[331340786,1720253686372,-894.48,0.00032155,30]
[331340787,1720253686418,-592.6,0.00032155,30]
[331340788,1720253686463,-275.80546366,0.00032155,30]
[331340789,1720253686502,-955.41,0.00032155,30]
[331340790,1720253686539,-500.0,0.00032155,30]
[331340791,1720253686576,-500.0,0.00032155,30]
[331340792,1720253686613,-592.6,0.00032155,30]
[331340793,1720253686652,-955.41,0.00032155,30]
[331340794,1720253686690,-500.0,0.00032155,30]
[331340795,1720253686727,-500.0,0.00032155,30]
[331340796,1720253686766,-955.41,0.00032155,30]
[331340797,1720253686805,-500.0,0.00032155,30]
[331340798,1720253686842,-500.0,0.00032155,30]
[331340799,1720253686879,-955.41,0.00032155,30]
[331340800,1720253686932,-733.76,0.00032155,30]
[331340801,1720253686970,-894.48,0.00032155,30]
[331340802,1720253687008,-592.6,0.00032155,30]
[331340803,1720253687045,-500.0,0.00032155,30]
[331340804,1720253687085,-955.41,0.00032155,30]
[331340805,1720253687123,-592.6,0.00032155,30]
[331340806,1720253687164,-500.0,0.00032155,30]
[331340807,1720253687206,-955.41,0.00032155,30]
[331340808,1720253687248,-500.0,0.00032155,30]
[331340809,1720253687288,-500.0,0.00032155,30]
[331340810,1720253687329,-500.0,0.00032155,30]
[331340811,1720253687368,-592.6,0.00032155,30]
[331340812,1720253687409,-500.0,0.00032155,30]
[331340813,1720253687448,-592.6,0.00032155,30]
[331340814,1720253687488,-733.76,0.00032155,30]
[331340815,1720253687529,-955.41,0.00032155,30]
[331340816,1720253687568,-592.6,0.00032155,30]
[331340817,1720253687608,-955.41,0.00032155,30]
[331340818,1720253687647,-500.0,0.00032155,30]
[331340819,1720253687690,-894.48,0.00032155,30]
[331340820,1720253687728,-500.0,0.00032155,30]
[331340821,1720253687778,-500.0,0.00032155,30]
[331340822,1720253687820,-503.67843649,0.00032155,30]
[331340823,1720253687862,-955.41,0.00032155,30]
[331340824,1720253688198,-592.6,0.00032155,30]
[331340825,1720253688240,-500.0,0.00032155,30]
[331340826,1720253688288,-500.0,0.00032155,30]
[331340827,1720253688329,-733.76,0.00032155,30]
[331340828,1720253688368,-894.48,0.00032155,30]
[331340829,1720253688407,-500.0,0.00032155,30]
[331340830,1720253688446,-500.0,0.00032155,30]
[331340831,1720253688485,-955.41,0.00032155,30]
[331340832,1720253688524,-500.0,0.00032155,30]
[331340833,1720253688563,-500.0,0.00032155,30]
[331340834,1720253688602,-592.6,0.00032155,30]
[331340835,1720253688640,-497.5869809,0.00032155,30]
[331340836,1720253688678,-500.0,0.00032155,30]
[331340837,1720253688721,-500.0,0.00032155,30]
[331340838,1720253688764,-500.0,0.00032155,30]
[331340839,1720253688810,-955.41,0.00032155,30]
[331340840,1720253688852,-592.6,0.00032155,30]
[331340841,1720253688891,-733.76,0.00032155,30]
[331340842,1720253688931,-500.0,0.00032155,30]
[331340843,1720253688972,-894.48,0.00032155,30]
[331340844,1720253689013,-592.50092653,0.00032155,30]
[331340845,1720253689053,-502.16772241,0.00032155,30]
[331340846,1720253689092,-955.41,0.00032155,30]
[331340847,1720253689132,-500.0,0.00032155,30]
[331340848,1720253689173,-592.6,0.00032155,30]
[331340849,1720253689212,-500.0,0.00032155,30]
[331340850,1720253689253,-500.0,0.00032155,30]
[331340851,1720253689296,-500.0,0.00032155,30]
[331340852,1720253689336,-500.0,0.00032155,30]
[331340853,1720253689376,-955.41,0.00032155,30]
[331340854,1720253689415,-500.0,0.00032155,30]
[331340855,1720253689456,-733.76,0.00032155,30]
[331340856,1720253689497,-592.6,0.00032155,30]
[331340857,1720253689539,-894.48,0.00032155,30]
[331340858,1720253689580,-500.0,0.00032155,30]
[331340859,1720253689622,-500.0,0.00032155,30]
[331340860,1720253689663,-955.41,0.00032155,30]
[331340861,1720253689703,-592.6,0.00032155,30]
[331340862,1720253689743,-500.0,0.00032155,30]
[331340863,1720253689784,-955.41,0.00032155,30]
[331340864,1720253689823,-500.0,0.00032155,30]
[331340865,1720253689863,-500.0,0.00032155,30]
[331340866,1720253689902,-500.0,0.00032155,30]
[331340867,1720253689943,-733.76,0.00032155,30]
[331340868,1720253689981,-500.0,0.00032155,30]
[331340869,1720253690020,-500.0,0.00032155,30]
[331340870,1720253690058,-500.0,0.00032155,30]
[331340871,1720253690098,-500.0,0.00032155,30]
[331340872,1720253690138,-955.41,0.00032155,30]
[331340873,1720253690179,-733.76,0.00032155,30]
[331340874,1720253690220,-592.6,0.00032155,30]
[331340875,1720253690261,-894.48,0.00032155,30]
[331340876,1720253690300,-633.89,0.00032155,30]
[331340877,1720253690340,-592.6,0.00032155,30]
[331340878,1720253690381,-500.0,0.00032155,30]
[331340879,1720253690421,-500.0,0.00032155,30]
[331340880,1720253690461,-955.58,0.00032155,30]
[331340881,1720253690503,-633.89,0.00032155,30]
[331340882,1720253690540,-500.0,0.00032155,30]
[331340883,1720253690580,-894.48,0.00032155,30]
[331340884,1720253690620,-500.0,0.00032155,30]
[331340885,1720253690661,-500.0,0.00032155,30]
[331340886,1720253690704,-733.99647197,0.00032155,30]
[331340887,1720253690745,-500.0,0.00032155,30]
[331340888,1720253690788,-500.0,0.00032155,30]
[331340889,1720253690828,-633.89,0.00032155,30]
[331340890,1720253690868,-500.0,0.00032155,30]
[331340891,1720253690910,-500.0,0.00032155,30]
[331340892,1720253690954,-500.0,0.00032155,30]
[331340893,1720253690994,-500.0,0.00032155,30]
[331340894,1720253691033,-500.0,0.00032155,30]
[331340895,1720253691074,-500.0,0.00032155,30]
[331340896,1720253691116,-894.48,0.00032155,30]
[331340897,1720253691155,-500.0,0.00032155,30]
[331340898,1720253691193,-500.0,0.00032155,30]
[331340899,1720253691236,-500.0,0.00032155,30]
[331340900,1720253691275,-592.6,0.00032155,30]
[331340901,1720253691314,-500.0,0.00032155,30]
[331340902,1720253691354,-633.89,0.00032155,30]
[331340903,1720253691393,-894.48,0.00032155,30]
[331340904,1720253691433,-500.0,0.00032155,30]
[331340905,1720253691473,-633.89,0.00032155,30]
[331340906,1720253691512,-500.0,0.00032155,30]
[331340907,1720253691551,-500.0,0.00032155,30]
[331340908,1720253691589,-500.0,0.00032155,30]
[331340909,1720253691628,-592.6,0.00032155,30]
[331340910,1720253691666,-500.0,0.00032155,30]
[331340911,1720253691708,-894.48,0.00032155,30]
[331340912,1720253691748,-500.0,0.00032155,30]
[331340913,1720253691791,-616.93788676,0.00032155,30]
[331340914,1720253691832,-592.6,0.00032155,30]
[331340915,1720253691874,-500.0,0.00032155,30]
[331340916,1720253691914,-633.89,0.00032155,30]
[331340917,1720253691955,-500.0,0.00032155,30]
[331340918,1720253691995,-894.48,0.00032155,30]
[331340919,1720253692035,-500.0,0.00032155,30]
[331340920,1720253692076,-500.0,0.00032155,30]
[331340921,1720253692116,-500.0,0.00032155,30]
[331340922,1720253692155,-500.0,0.00032155,30]
[331340923,1720253692194,-592.6,0.00032155,30]
[331340924,1720253692237,-500.0,0.00032155,30]
[331340925,1720253692276,-633.89,0.00032155,30]
[331340926,1720253692316,-500.0,0.00032155,30]
[331340927,1720253692356,-500.0,0.00032155,30]
[331340928,1720253692583,-500.0,0.00032155,30]
[331340929,1720253692624,-592.6,0.00032155,30]
[331340930,1720253692663,-500.0,0.00032155,30]
[331340931,1720253692703,-500.0,0.00032155,30]
[331340932,1720253692744,-633.89,0.00032155,30]
[331340933,1720253692790,-894.48,0.00032155,30]
[331340934,1720253692830,-177.79423401,0.00032155,30]
[331340935,1720253692870,-248.19,0.00032155,30]
[331340936,1720253692909,-500.0,0.00032155,30]
[331340937,1720253692948,-633.89,0.00032155,30]
[331340938,1720253692990,-592.6,0.00032155,30]
[331340939,1720253693033,-500.0,0.00032155,30]
[331340940,1720253693079,-500.0,0.00032155,30]
[331340941,1720253693121,-500.0,0.00032155,30]
[331340942,1720253693162,-633.89,0.00032155,30]
[331340943,1720253693206,-500.0,0.00032155,30]
[331340944,1720253693246,-592.6,0.00032155,30]
[331340945,1720253693284,-500.0,0.00032155,30]
[331340946,1720253693324,-500.0,0.00032155,30]
[331340947,1720253693364,-500.0,0.00032155,30]
[331340948,1720253693404,-0.26468174,0.00032155,30]
[331340950,1720254052395,14.90860943,0.00010497,2]
[331340951,1720254052426,435.61139057,0.00010497,2]
[331340952,1720254299732,6360.34677297,0.00011199,2]
[331340953,1720254410552,432.61296917,0.00011199,2]
[331340995,1720254544511,-739.28642573,0.00012259,2]
[331340996,1720254544546,-250.0,0.00012314,2]
[331340997,1720254544566,-165.97,0.00012359,2]
[331340998,1720254544576,-150.0,0.00012364,2]
[331340999,1720254544586,-300.0,0.00012371,2]
[331341000,1720254544595,-123.31642573,0.00012372,2]
[331341001,1720254544659,-250.0,0.00012372,2]
[331341002,1720254544670,-100.42714854,0.00012372,2]
[331341007,1720254598472,427.99,0.00010562,2]
[331341008,1720254605021,-250.0,0.00012373,2]
[331341009,1720254605061,-1000.0,0.00012373,2]
[331341010,1720254605096,-500.0,0.00012392,2]
[331341011,1720254605131,-447.86,0.00012584,2]
[331341012,1720254605153,-250.0,0.00012609,2]
[331341013,1720254605193,-50.0,0.00012609,2]
[331341014,1720254605203,-234.03,0.0001261,2]
[331341015,1720254605213,-715.97,0.0001261,2]
[331341016,1720254605225,-500.0,0.0001261,2]
[331341017,1720254605289,-447.86,0.0001261,2]
[331341018,1720254605313,-224.28,0.0001261,2]
[331341020,1720254608333,-1402.4806158,0.00013574,7]
[331341021,1720254608360,-300.0,0.000137,5]
[331341022,1720254608385,-800.0,0.000138,5]
[331341037,1720254633048,-7898.34221736,0.0001261,2]
[331341038,1720254633062,-4458.23572949,0.0001261,2]
[331341039,1720254633073,-35755.31205315,0.0001261,2]
[331341040,1720254633084,-282.05,0.00012616,2]
[331341041,1720254633095,-171.6,0.00012637,2]
[331341042,1720254633105,-391.75,0.00012637,2]
[331341043,1720254633115,-282.05,0.00012651,2]
[331341044,1720254633126,-499.99,0.00012651,2]
[331341045,1720254633136,-282.05,0.00012685,2]
[331341046,1720254633146,-150.99,0.00012697,2]
[331341047,1720254633155,-282.05,0.0001272,2]
[331341048,1720254633164,-282.05,0.00012755,2]
[331341049,1720254633174,-282.05,0.00012789,2]
[331341050,1720254633184,-282.05,0.00012824,2]
[331341051,1720254633194,-427.99,0.00012826,2]
[331341052,1720254633204,-282.05,0.00012858,2]
[331341053,1720254633214,-282.05,0.00012893,2]
[331341054,1720254633223,-300.0,0.000129,4]
[331341055,1720254633232,-282.05,0.00012928,2]
[331341056,1720254633241,-1323.414692,0.00012931,2]
[331341057,1720254633250,-282.05,0.00012962,2]
[331341058,1720254633260,-282.05,0.00012997,2]
[331341059,1720254633271,-600.0,0.00013,4]
[331341060,1720254633282,-282.05,0.00013031,2]
[331341061,1720254633291,-282.05,0.00013066,2]
[331341062,1720254633300,-150.0,0.00013066,2]
[331341063,1720254633313,-1000.0,0.000131,4]
[331341064,1720254633322,-282.05,0.00013101,2]
[331341065,1720254633332,-282.05,0.00013135,2]
[331341066,1720254633340,-282.05,0.0001317,2]
[331341067,1720254633350,-1300.0,0.000132,4]
[331341068,1720254633359,-282.05,0.00013204,2]
[331341069,1720254633368,-282.05,0.00013239,2]
[331341070,1720254633377,-282.05,0.00013274,2]
[331341071,1720254633386,-1700.0,0.000133,4]
[331341072,1720254633395,-300.0,0.000134,4]
[331341073,1720254633404,-1393.62632315,0.00013448,2]
[331341074,1720254633416,-3019.37367685,0.00013448,2]
[331341075,1720254633426,-300.0,0.000135,4]
[331341076,1720254633435,-594.33,0.00013512,2]
[331341077,1720254633444,-594.33,0.00013515,2]
[331341078,1720254633453,-594.33,0.00013519,2]
[331341079,1720254633463,-594.33,0.00013523,2]
[331341080,1720254633472,-594.33,0.00013526,2]
[331341081,1720254633481,-594.33,0.0001353,2]
[331341082,1720254633490,-594.33,0.00013533,2]
[331341083,1720254633500,-594.33,0.00013537,2]
[331341084,1720254633509,-594.33,0.0001354,2]
[331341085,1720254633518,-676.2679898,0.00013543,2]
[331341086,1720254633530,-594.33,0.00013544,2]
[331341087,1720254633539,-594.33,0.00013547,2]
[331341088,1720254633548,-594.33,0.00013551,2]
[331341089,1720254633558,-594.33,0.00013555,2]
[331341090,1720254633568,-594.33,0.00013558,2]
[331341091,1720254633579,-594.33,0.00013562,2]
[331341092,1720254633591,-594.33,0.00013565,2]
[331341093,1720254633601,-594.33,0.00013569,2]
[331341094,1720254633611,-594.33,0.00013572,2]
[331341095,1720254633620,-594.33,0.00013576,2]
[331341096,1720254633630,-594.33,0.0001358,2]
[331341097,1720254633640,-300.0,0.000136,4]
[331341098,1720254633650,-173.03,0.00013696,2]
[331341099,1720254633662,-2751.0,0.00013699,2]
[331341100,1720254633672,-610.53,0.00013699,2]
[331341101,1720254633684,-200.0,0.00013699,2]
[331341102,1720254633703,-1000.0,0.000137,2]
[331341103,1720254633713,-1000.0,0.000137,2]
[331341104,1720254633723,-1000.0,0.000137,2]
[331341105,1720254633733,-1124.0,0.000137,2]
[331341106,1720254633742,-500.0,0.000138,2]
[331341107,1720254633751,-473.36255734,0.000138,2]
[331341108,1720254633760,-406.3409,0.000138,2]
[331341109,1720254633769,-473.36255733,0.00013827,2]
[331341110,1720254633779,-420.0,0.00013834,2]
[331341111,1720254633787,-473.36255733,0.00013853,2]
[331341112,1720254633796,-473.36255733,0.0001388,2]
[331341113,1720254633806,-604.99,0.0001389,2]
[331341114,1720254633815,-604.99,0.0001389,2]
[331341115,1720254633825,-604.99,0.0001389,2]
[331341116,1720254633834,-604.99,0.0001389,2]
[331341117,1720254633843,-604.99,0.0001389,2]
[331341118,1720254633853,-220.36,0.0001389,2]
[331341119,1720254633862,-388.58987389,0.00013899,2]
[331341120,1720254634163,-1000.0,0.000139,2]
[331341121,1720254634177,-260.8865,0.000139,2]
[331341122,1720254634187,-313.4805,0.000139,2]
[331341123,1720254634198,-280.96365295,0.000139,2]
[331341124,1720254634207,-27043.38075811,0.000139,2]
[331341125,1720254636202,-6696.57056878,0.000139,2]
[331341128,1720254636214,-892.30034146,0.000139,2]
[331341130,1720254636227,-4856.89563165,0.000139,2]
[331341132,1720254636237,-9875.91867051,0.000139,2]
[331341141,1720254638998,-2238.595092,0.000139,2]
[331341148,1720254641765,-62855.82678178,0.000139,2]
[331341150,1720254641778,-1420.23018671,0.000139,2]
[331341152,1720254641790,-755.07723633,0.000139,2]
[331341154,1720254641802,-556.00345175,0.000139,2]
[331341156,1720254641816,-471.1146507,0.000139,2]
[331341235,1720254645645,-16660.24367635,0.000139,2]
[331341237,1720254645657,-2248.95674392,0.000139,2]
[331341240,1720254647419,-2918.03350995,0.000139,2]
[331341241,1720254647429,-245000.0,0.000139,2]
[331341242,1720254647439,-159.80814445,0.000139,2]
[331341243,1720254647449,-11631.93269426,0.000139,2]
[331341244,1720254647460,-1119.297546,0.000139,2]
[331341245,1720254647471,-1119.297546,0.000139,2]
[331341246,1720254647480,-165.97,0.00013904,2]
[331341247,1720254647491,-473.36255733,0.00013907,2]
[331341248,1720254647500,-1000.0,0.0001392,2]
[331341249,1720254647510,-473.36255733,0.00013934,2]
[331341250,1720254647520,-473.36255733,0.0001396,2]
[331341251,1720254647533,-150.0,0.00013969,2]
[331341252,1720254647545,-473.36255733,0.00013987,2]
[331341253,1720254647558,-174.59093182,0.00013987,2]
[331341254,1720254647570,-267.92913545,0.0001399,2]
[331341255,1720254647580,-267.92913545,0.0001399,2]
[331341256,1720254647589,-267.92913545,0.0001399,2]
[331341257,1720254647599,-768.0,0.00014,2]
[331341258,1720254647608,-345634.48914739,0.00014,2]
[331341259,1720254647620,-314.105432,0.00014,2]
[331341260,1720254647632,-770.695,0.00014,2]
[331341261,1720254647644,-811.75649226,0.00014,2]
[331341262,1720254647656,-49054.52253702,0.00014,2]
[331341279,1720254648709,-2133.07562019,0.00014,2]
[331341280,1720254648821,-493.70431179,0.00014,2]
[331341281,1720254648833,-2094.83905449,0.00014,2]
[331341282,1720254648845,-6028.6047016,0.00014,2]
[331341283,1720254648857,-415.0,0.00014,2]
[331341284,1720254648870,-50756.42281221,0.00014,2]
[331341285,1720254648881,-5839.51800013,0.00014,2]
[331341286,1720254648893,-845.98994952,0.00014,2]
[331341287,1720254648904,-348.8603977,0.00014,2]
[331341288,1720254648915,-582.62866,0.00014,2]
[331341289,1720254648927,-5880.96757488,0.00014,2]
[331341290,1720254649545,-902.19057551,0.00014,2]
[331341293,1720254711753,2738.43275453,0.00011199,2]
[331341294,1720254725914,-1816.88391842,0.00012302,2]
[331341295,1720254725939,-841.78548423,0.00012302,2]
[331341296,1720254725964,-210.96733206,0.00012314,2]
[331341297,1720254725989,-741.84513559,0.0001369,2]
[331341298,1720254726018,-247.5181297,0.00013799,2]
[331341299,1720254792063,-530.36557167,0.00012302,2]
[331341300,1720254792089,-172.42966663,0.00013699,2]
[331341301,1720254792114,-300.0,0.00013799,2]
[331341302,1720254792141,-2997.2047617,0.000138,2]
[331341304,1720255057510,525659.79865897,0.000225,120]
[331341328,1720255760530,-2128.5223669,0.00011309,2]
[331341329,1720255760573,-770.55069158,0.00011309,2]
[331341330,1720255760616,-397.07182628,0.00011409,2]
[331341331,1720255814809,2743.38252535,0.00011199,2]
[331341343,1720255832784,-16.20817372,0.00011409,2]
[331341344,1720255832794,-169.03,0.00012445,2]
[331341345,1720255832803,-200.0,0.0001247,2]
[331341346,1720255832812,-250.0,0.00012515,2]
[331341347,1720255832826,-2409.02891204,0.00012574,2]
[331341348,1720255832837,-2441.41226186,0.00012574,2]
[331341349,1720255832848,-11774.88911757,0.00012574,2]
[331341356,1720255833163,-10583.75706558,0.00012574,2]
[331341358,1720255833175,-404.4999995,0.00012574,2]
[331341363,1720255833185,-347.96815075,0.00012574,2]
[331341366,1720255833197,-3164.75000067,0.00012574,2]
[331341368,1720255833207,-10702.18472324,0.00012574,2]
[331341370,1720255833218,-4825.2271754,0.00012574,2]
[331341372,1720255833229,-611.8,0.00012574,2]